bitfinex-derivatives/quotes_BTCF0:USTF0_20250602
["timestamp","ask_amount","ask_price","bid_price","bid_amount"]
[1748852870441,0.05290532,105940.0,105930.0,0.1887123]
[1748852870629,0.05290532,105940.0,105930.0,1.17182408]
[1748852870830,0.00944161,105950.0,105940.0,0.1886945]
[1748852871135,0.00944161,105950.0,105940.0,0.6882745]
[1748852871838,0.00944161,105950.0,105940.0,0.67906619]
[1748852872743,0.78535231,105960.0,105940.0,0.77341139]
[1748852873037,0.7259107,105960.0,105950.0,0.3945]
[1748852873229,0.7259107,105960.0,105950.0,0.4294]
[1748852873430,0.7259107,105960.0,105950.0,0.6180767]
[1748852873629,0.2829907,105960.0,105950.0,0.6180767]
[1748852874145,0.7257107,105960.0,105950.0,0.6180767]
[1748852874643,0.7255907,105960.0,105950.0,0.4294]
[1748852875528,0.7255907,105960.0,105950.0,0.4304]
[1748852875927,0.0675,105970.0,105960.0,0.1886589]
[1748852876131,0.28979629,105980.0,105960.0,0.50054]
[1748852876340,0.54622619,105980.0,105970.0,0.0347]
[1748852876538,0.1336,105980.0,105970.0,0.5841411]
[1748852876737,0.92113508,105980.0,105970.0,0.38443358]
[1748852877040,0.47885508,105980.0,105970.0,0.41943358]
[1748852877242,0.47885508,105980.0,105970.0,0.87026646]
[1748852877243,0.1002,105980.0,105970.0,0.87026646]
[1748852877430,0.1002,105980.0,105970.0,0.71383468]
[1748852877630,0.1,105980.0,105970.0,0.87026646]
[1748852877834,0.1002,105980.0,105970.0,0.60807468]
[1748852878035,0.1002,105980.0,105970.0,0.71379468]
[1748852878229,0.44505508,105980.0,105970.0,0.70569468]
[1748852878428,0.2888233,105980.0,105970.0,0.70669468]
[1748852878643,0.1002,105980.0,105970.0,0.70669468]
[1748852878832,0.25663178,105980.0,105970.0,0.70669468]
[1748852879027,0.25663178,105980.0,105970.0,0.44663358]
[1748852879028,0.44505508,105980.0,105970.0,0.44663358]
[1748852879227,0.2888233,105980.0,105970.0,0.74099468]
[1748852879442,0.48185508,105980.0,105970.0,0.55235358]
[1748852879740,0.48185508,105980.0,105970.0,0.74099468]
[1748852880537,0.48185508,105980.0,105970.0,0.55235358]
[1748852880737,0.48185508,105980.0,105970.0,0.74099468]
[1748852880942,0.48185508,105980.0,105970.0,0.63527468]
[1748852881131,0.1002,105980.0,105970.0,0.74099468]
[1748852881532,0.1,105980.0,105970.0,0.74099468]
[1748852881728,0.002,105990.0,105980.0,0.1886233]
[1748852881933,0.00504,106000.0,105990.0,0.1886055]
[1748852882135,0.00504,106000.0,105990.0,0.81155728]
[1748852882328,0.00504,106000.0,105990.0,1.1051655]
[1748852882329,0.00524,106000.0,105990.0,1.1051655]
[1748852882534,0.00504,106000.0,105990.0,1.1051655]
[1748852882734,0.00524,106000.0,105990.0,0.5494055]
[1748852883042,0.00524,106000.0,105990.0,1.1052055]
[1748852883228,0.00524,106000.0,105990.0,1.1151955]
[1748852883740,0.00524,106000.0,105990.0,1.1152755]
[1748852884133,0.39497479,106020.0,106000.0,0.1885877]
[1748852884334,0.15643178,106010.0,106000.0,0.2828782]
[1748852884542,0.15643178,106010.0,106000.0,0.47104]
[1748852884543,0.1885699,106010.0,106000.0,0.47104]
[1748852884848,0.37830168,106010.0,106000.0,0.5493877]
[1748852885040,0.37830168,106010.0,106000.0,0.7294277]
[1748852885337,0.37830168,106010.0,106000.0,0.7657277]
[1748852885539,0.37830168,106010.0,106000.0,0.4669]
[1748852885540,0.37850168,106010.0,106000.0,0.4669]
[1748852885734,0.37850168,106010.0,106000.0,0.7657277]
[1748852886636,0.0335,106010.0,106000.0,0.6554877]
[1748852886935,0.18993178,106010.0,106000.0,0.7656877]
[1748852887136,0.37850168,106010.0,106000.0,0.7656877]
[1748852887543,0.18993178,106010.0,106000.0,0.7656877]
[1748852887744,0.37850168,106010.0,106000.0,0.7656877]
[1748852888144,0.18993178,106010.0,106000.0,0.7656877]
[1748852888338,0.37850168,106010.0,106000.0,0.7656877]
[1748852888533,0.18973178,106010.0,106000.0,0.7656877]
[1748852889131,0.18993178,106010.0,106000.0,0.7656877]
[1748852889331,0.0335,106010.0,106000.0,0.7656877]
[1748852889537,0.18973178,106010.0,106000.0,0.7656877]
[1748852889738,0.18993178,106010.0,106000.0,0.7656877]
[1748852889937,0.18973178,106010.0,106000.0,0.7656877]
[1748852890252,0.0335,106010.0,106000.0,0.7656877]
[1748852891736,0.0333,106010.0,106000.0,0.7656877]
[1748852892052,0.0335,106010.0,106000.0,0.64628444]
[1748852892350,0.0335,106010.0,106000.0,0.75648444]
[1748852893249,0.0333,106010.0,106000.0,1.05558444]
[1748852893441,0.0002,106010.0,106000.0,1.19701744]
[1748852893745,0.22943178,106020.0,106010.0,0.1885699]
[1748852893934,0.32943178,106020.0,106010.0,0.6196699]
[1748852894139,0.173,106020.0,106010.0,0.6196699]
[1748852894943,0.1385,106020.0,106010.0,0.6196699]
[1748852895544,0.29493178,106020.0,106010.0,0.6196699]
[1748852895946,0.1385,106020.0,106010.0,0.6196699]
[1748852896250,0.53348398,106020.0,106010.0,0.3955]
[1748852896439,0.66408398,106020.0,106010.0,0.69427]
[1748852897145,0.66408398,106020.0,106010.0,0.5057]
[1748852897347,0.66408398,106020.0,106010.0,0.3955]
[1748852897547,0.66408398,106020.0,106010.0,0.5057]
[1748852898445,0.66408398,106020.0,106010.0,0.3955]
[1748852898647,0.1885699,106010.0,106000.0,0.00014161]
[1748852898847,0.7831299,106010.0,106000.0,0.20608917]
[1748852899042,0.93956168,106010.0,106000.0,0.56688917]
[1748852899249,0.93956168,106010.0,106000.0,0.37830147]
[1748852899446,0.93956168,106010.0,106000.0,0.01750147]
[1748852899645,1.03964168,106010.0,106000.0,0.56688917]
[1748852900346,1.03964168,106010.0,106000.0,0.37830147]
[1748852900550,1.03948168,106010.0,106000.0,0.37830147]
[1748852901251,0.59000168,106010.0,106000.0,0.01750147]
[1748852901451,0.59000168,106010.0,106000.0,0.67709077]
[1748852901452,0.93940328,106010.0,106000.0,0.67709077]
[1748852901940,0.5944,106010.0,106000.0,0.67709077]
[1748852902140,0.5948,106010.0,106000.0,0.69918687]
[1748852902553,0.595,106010.0,106000.0,0.69918687]
[1748852902853,0.7835723,106010.0,106000.0,0.69918687]
[1748852903044,1.04000408,106010.0,106000.0,0.69918687]
[1748852903652,0.75143178,106010.0,106000.0,0.69918687]
[1748852903849,0.94000428,106010.0,106000.0,0.69918687]
[1748852904050,1.04000428,106010.0,106000.0,0.69918687]
[1748852905150,0.0833,106010.0,106000.0,0.66788787]
[1748852905350,0.0333,106010.0,106000.0,0.73288787]
[1748852906760,0.0002,106010.0,106000.0,0.73288787]
[1748852907148,0.92451113,106020.0,106000.0,0.52838607]
[1748852907348,0.18933178,106010.0,106000.0,0.71696467]
[1748852907554,0.18933178,106010.0,106000.0,0.8188671]
[1748852907948,0.18933178,106010.0,106000.0,0.7086671]
[1748852908148,0.18933178,106010.0,106000.0,0.8188671]
[1748852908342,0.18933178,106010.0,106000.0,0.8235771]
[1748852908343,0.0329,106010.0,106000.0,0.8235771]
[1748852908955,0.0329,106010.0,106000.0,0.80823823]
[1748852909157,0.00213935,106020.0,106000.0,0.77609141]
[1748852909359,0.00213935,106020.0,106010.0,1.18570418]
[1748852909561,0.00213935,106020.0,106010.0,1.0292724]
[1748852909859,5e-08,106020.0,106010.0,1.62347118]
[1748852910044,5e-08,106020.0,106010.0,2.69399118]
[1748852910250,0.00020005,106020.0,106010.0,3.94399118]
[1748852911049,5e-08,106020.0,106010.0,3.94399118]
[1748852911359,5e-08,106020.0,106010.0,3.90028206]
[1748852911553,0.73001689,106050.0,106040.0,0.1885192]
[1748852911757,0.83001689,106050.0,106040.0,0.471]
[1748852911952,0.88001689,106050.0,106040.0,0.6595192]
[1748852912262,0.88001689,106050.0,106040.0,2.13805091]
[1748852912263,0.42298625,106050.0,106040.0,2.13805091]
[1748852912561,0.42298625,106050.0,106040.0,2.1365739]
[1748852912762,0.20698625,106050.0,106040.0,2.1697739]
[1748852913363,0.20718625,106050.0,106040.0,2.2028739]
[1748852913565,0.20698625,106050.0,106040.0,2.2028739]
[1748852913861,0.20718625,106050.0,106040.0,2.2028739]
[1748852914065,0.30718625,106050.0,106040.0,2.2028739]
[1748852914259,0.23768625,106050.0,106040.0,0.69329238]
[1748852914559,0.23768625,106050.0,106040.0,0.69237238]
[1748852916160,0.01825447,106050.0,106040.0,0.58309238]
[1748852916463,0.01825447,106050.0,106040.0,0.59239235]
[1748852917057,0.05065447,106050.0,106040.0,0.59239235]
[1748852917262,0.20728625,106050.0,106040.0,0.59239235]
[1748852918767,0.05085447,106050.0,106040.0,0.59239235]
[1748852918977,0.20728625,106050.0,106040.0,0.59239235]
[1748852919283,0.08245447,106050.0,106040.0,0.62519235]
[1748852919564,0.05085447,106050.0,106040.0,0.60985943]
[1748852920667,0.05085447,106050.0,106040.0,0.71913943]
[1748852920969,0.20728625,106050.0,106040.0,0.71913943]
[1748852921764,0.23988625,106050.0,106040.0,0.71913943]
[1748852922177,0.33988625,106050.0,106040.0,0.71913943]
[1748852922468,0.68876625,106050.0,106040.0,0.71902029]
[1748852922770,0.68868625,106050.0,106040.0,0.71902029]
[1748852922974,0.68868625,106050.0,106040.0,0.79425262]
[1748852923574,0.68868625,106050.0,106040.0,0.71902029]
[1748852923755,0.78868625,106050.0,106040.0,0.68592029]
[1748852923957,0.68868625,106050.0,106040.0,0.68592029]
[1748852924469,1.02686855,106050.0,106030.0,1.86094161]
[1748852924660,0.40293178,106040.0,106030.0,0.00014161]
[1748852924858,0.40293178,106040.0,106030.0,0.36094161]
[1748852925053,0.59145188,106040.0,106030.0,0.36094161]
[1748852925359,0.59145188,106040.0,106030.0,0.00485161]
[1748852925571,0.66825422,106040.0,106030.0,0.00485161]
[1748852925754,0.68575988,106040.0,106030.0,0.00485161]
[1748852926058,0.3385557,106020.0,106010.0,0.3608]
[1748852926263,0.94350748,106020.0,106010.0,0.3608]
[1748852926479,1.00780748,106020.0,106010.0,0.3608]
[1748852927262,0.3385735,106010.0,106000.0,0.39531708]
[1748852927468,0.52750528,106010.0,106000.0,0.39531708]
[1748852927673,0.52750528,106010.0,106000.0,0.36772708]
[1748852929061,0.56000528,106010.0,106000.0,0.36772708]
[1748852929362,0.27143178,106010.0,106000.0,0.36772708]
[1748852929664,0.72015178,106010.0,106000.0,0.39862708]
[1748852929969,1.00872538,106010.0,106000.0,0.36772708]
[1748852930166,1.36952538,106010.0,106000.0,0.00692708]
[1748852930367,1.08360051,106010.0,106000.0,0.00692708]
[1748852930865,0.28987513,106010.0,106000.0,0.19551838]
[1748852931071,0.79494691,106010.0,106000.0,0.55631838]
[1748852931265,0.79494691,106010.0,106000.0,0.39862708]
[1748852931471,0.89494691,106010.0,106000.0,0.36772708]
[1748852931670,0.79494691,106010.0,106000.0,0.36772708]
[1748852931872,0.98352051,106010.0,106000.0,0.40152708]
[1748852933270,1.08352051,106010.0,106000.0,0.40152708]
[1748852933761,0.19007513,106010.0,106000.0,0.59011848]
[1748852933957,0.63967513,106010.0,106000.0,0.62391848]
[1748852934161,0.63947513,106010.0,106000.0,0.62391848]
[1748852934376,0.63967513,106010.0,106000.0,0.43532708]
[1748852934670,0.79630691,106010.0,106000.0,0.62391848]
[1748852934872,0.79630691,106010.0,106000.0,0.07452708]
[1748852935071,1.08488051,106010.0,106000.0,0.00692708]
[1748852935278,0.98488051,106010.0,106000.0,0.00692708]
[1748852935572,1.23056945,106010.0,106000.0,0.00692708]
[1748852935870,1.23056945,106010.0,106000.0,0.03842708]
[1748852936674,1.08492051,106010.0,106000.0,0.03842708]
[1748852936876,1.23146428,106010.0,106000.0,0.03842708]
[1748852938163,1.23118428,106010.0,106000.0,0.03842708]
[1748852939157,0.78162428,106010.0,106000.0,0.03842708]
[1748852939365,1.13114428,106010.0,106000.0,0.03842708]
[1748852939672,1.23114428,106010.0,106000.0,0.03842708]
[1748852939970,0.98460051,106010.0,106000.0,0.03842708]
[1748852940173,1.29157751,106010.0,106000.0,0.03842708]
[1748852940775,1.08460051,106010.0,106000.0,0.06932708]
[1748852941072,1.08460051,106010.0,106000.0,0.00692708]
[1748852941376,1.29157751,106010.0,106000.0,0.00692708]
[1748852941675,1.13514573,106010.0,106000.0,0.03902708]
[1748852941868,0.98460051,106010.0,106000.0,0.03902708]
[1748852942074,1.08460051,106010.0,106000.0,0.03902708]
[1748852942769,1.80880929,106010.0,106000.0,0.00692708]
[1748852942984,0.188627,105980.0,105970.0,0.50619606]
[1748852943171,0.94473878,105980.0,105970.0,0.53709606]
[1748852943370,1.03993878,105980.0,105970.0,1.92777606]
[1748852943683,0.79469878,105980.0,105970.0,1.92777606]
[1748852943867,0.79469878,105980.0,105970.0,0.42777606]
[1748852944068,0.60595178,105980.0,105970.0,0.42777606]
[1748852944269,0.65595178,105980.0,105970.0,1.92777606]
[1748852944481,0.84457878,105980.0,105970.0,1.92777606]
[1748852944877,0.84457878,105980.0,105970.0,0.42777606]
[1748852945075,0.84457878,105980.0,105970.0,0.06477606]
[1748852945674,0.688147,105980.0,105970.0,0.09667606]
[1748852945979,0.84457878,105980.0,105970.0,0.12807606]
[1748852946571,0.94457878,105980.0,105970.0,0.12807606]
[1748852946869,1.04147878,105980.0,105970.0,0.12807606]
[1748852947365,1.11572761,105980.0,105970.0,0.05370978]
[1748852948080,0.1886448,105970.0,105960.0,0.39454161]
[1748852948285,0.45827658,105970.0,105960.0,0.39454161]
[1748852948474,0.45827658,105970.0,105960.0,0.42574161]
[1748852948875,0.55827658,105970.0,105960.0,0.42574161]
[1748852950575,0.55264858,105970.0,105960.0,0.36094161]
[1748852950775,0.65264858,105970.0,105960.0,0.39334161]
[1748852951176,0.65264858,105970.0,105950.0,0.42465]
[1748852951177,0.1886642,105960.0,105950.0,0.36145]
[1748852951375,1.19664776,105960.0,105950.0,0.36145]
[1748852951585,1.04021598,105960.0,105950.0,0.39385]
[1748852951782,1.13459598,105960.0,105950.0,0.39385]
[1748852951987,1.13459598,105960.0,105950.0,0.36145]
[1748852952371,1.29102776,105960.0,105950.0,0.36145]
[1748852952576,1.65182776,105960.0,105950.0,1e-08]
[1748852953783,0.3342644,105960.0,105950.0,0.36080001]
[1748852953986,0.94009618,105960.0,105950.0,0.39390001]
[1748852954184,0.94029618,105960.0,105950.0,0.42560001]
[1748852954578,1.04029618,105960.0,105950.0,0.42560001]
[1748852955588,1.04029618,105960.0,105950.0,0.42550001]
[1748852956688,0.93993618,105960.0,105950.0,0.42550001]
[1748852956879,1.03993618,105960.0,105950.0,0.0648]
[1748852957187,1.03993618,105960.0,105950.0,0.4256]
[1748852957391,0.93993618,105960.0,105950.0,0.4256]
[1748852957580,1.03993618,105960.0,105950.0,0.4256]
[1748852958380,0.59089618,105960.0,105950.0,0.4256]
[1748852958585,1.03961618,105960.0,105950.0,0.4256]
[1748852958787,0.0818,105960.0,105950.0,0.60321315]
[1748852958990,0.44888,105960.0,105950.0,0.60321315]
[1748852959186,0.44868,105960.0,105950.0,0.60321315]
[1748852959384,0.44888,105960.0,105950.0,0.41453095]
[1748852959581,0.34529618,105960.0,105950.0,0.41453095]
[1748852959777,1.17490796,105960.0,105950.0,0.41453095]
[1748852959979,1.21240796,105960.0,105950.0,0.05373095]
[1748852960288,0.1886822,105950.0,105940.0,0.51053826]
[1748852960488,0.56961398,105950.0,105940.0,0.54913826]
[1748852960884,0.56961398,105950.0,105940.0,0.40161826]
[1748852961285,0.83611978,105950.0,105930.0,0.3608]
[1748852961489,0.1887179,105930.0,105920.0,2.04962]
[1748852961693,0.49514968,105930.0,105920.0,2.04962]
[1748852961893,0.2790179,105930.0,105920.0,0.54962]
[1748852962087,0.6873979,105930.0,105920.0,0.58712]
[1748852962287,0.6875979,105930.0,105920.0,0.58712]
[1748852962495,0.6875979,105930.0,105920.0,1.9774]
[1748852963801,0.6873179,105930.0,105920.0,0.6661353]
[1748852964006,0.6873179,105930.0,105920.0,0.4774]
[1748852965387,0.6870379,105930.0,105920.0,0.4774]
[1748852966102,0.94346968,105930.0,105920.0,0.4774]
[1748852966396,0.84346968,105930.0,105920.0,0.4774]
[1748852968404,0.94346968,105930.0,105920.0,0.4774]
[1748852968598,0.88416968,105930.0,105920.0,0.4774]
[1748852969201,0.88416968,105930.0,105920.0,0.46632903]
[1748852969398,0.0502,105930.0,105920.0,0.46632903]
[1748852969593,0.31052031,105940.0,105930.0,0.1887179]
[1748852969594,0.44798161,105940.0,105930.0,0.1887179]
[1748852969798,0.44798161,105940.0,105930.0,0.6270179]
[1748852969994,0.44798161,105940.0,105930.0,0.7367379]
[1748852970613,0.44786161,105940.0,105930.0,0.7367379]
[1748852970800,0.60429339,105940.0,105930.0,0.7367379]
[1748852971098,0.60429339,105940.0,105930.0,2.2367379]
[1748852971302,0.60429339,105940.0,105930.0,2.2414579]
[1748852972298,0.44894161,105940.0,105930.0,2.2414579]
[1748852972500,0.00014161,105940.0,105930.0,2.2414579]
[1748852972802,0.44906161,105940.0,105930.0,2.2414579]
[1748852973298,0.44894161,105940.0,105930.0,2.2414579]
[1748852973502,0.002,105960.0,105950.0,0.1886826]
[1748852973805,0.45068,105960.0,105950.0,1.0200026]
[1748852974111,0.45068,105960.0,105950.0,1.0955026]
[1748852974296,0.60731178,105960.0,105950.0,1.0955026]
[1748852975903,0.15863178,105960.0,105950.0,1.0955026]
[1748852976108,0.60687178,105960.0,105950.0,1.0955026]
[1748852976707,0.60671178,105960.0,105950.0,1.0955026]
[1748852978216,0.60643178,105960.0,105950.0,1.0955026]
[1748852978718,0.60631178,105960.0,105950.0,1.0955026]
[1748852978918,0.60631178,105960.0,105950.0,0.90682]
[1748852979114,0.65631178,105960.0,105950.0,0.90682]
[1748852979321,0.65631178,105960.0,105950.0,1.08443511]
[1748852980209,0.20863178,105960.0,105950.0,1.08443511]
[1748852980410,0.65603178,105960.0,105950.0,1.08443511]
[1748852981818,0.65603178,105960.0,105950.0,0.89575241]
[1748852982413,0.65603178,105960.0,105950.0,1.08443531]
[1748852982617,0.20863178,105960.0,105950.0,1.08443531]
[1748852982809,0.65571178,105960.0,105950.0,1.08443531]
[1748852983116,0.69411178,105960.0,105950.0,1.08443531]
[1748852983314,0.69411178,105960.0,105950.0,0.89575241]
[1748852984018,0.69411178,105960.0,105950.0,1.08443551]
[1748852984217,0.69411178,105960.0,105950.0,0.89575241]
[1748852985810,0.69411178,105960.0,105950.0,0.94275241]
[1748852987323,0.68029933,105960.0,105950.0,0.94275241]
[1748852987520,0.68029933,105960.0,105950.0,0.83303241]
[1748852987521,0.92291866,105960.0,105950.0,0.83303241]
[1748852987719,0.86891866,105960.0,105950.0,0.83303241]
[1748852987923,0.91391866,105960.0,105950.0,0.83303241]
[1748852989225,0.78467548,105960.0,105950.0,0.83303241]
[1748852989418,0.62868,105960.0,105950.0,1.02171561]
[1748852989724,0.78467548,105960.0,105950.0,1.13075561]
[1748852991228,0.62728,105960.0,105950.0,1.13075561]
[1748852991412,0.78327548,105960.0,105950.0,1.13075561]
[1748852991618,0.62728,105960.0,105950.0,1.13075561]
[1748852991822,0.29259548,105960.0,105950.0,1.13075561]
[1748852992126,0.73807548,105960.0,105950.0,1.13075561]
[1748852992429,0.24659548,105960.0,105950.0,1.13075561]
[1748852992730,0.64247548,105960.0,105950.0,1.13075561]
[1748852992924,0.64267548,105960.0,105950.0,1.13075561]
[1748852993528,0.73817548,105960.0,105950.0,1.13075561]
[1748852994123,0.73817548,105960.0,105950.0,1.1418232]
[1748852995119,0.15599548,105960.0,105950.0,1.1889928]
[1748852995418,0.15599548,105960.0,105950.0,1.2361624]
[1748852995618,0.15599548,105960.0,105950.0,0.95314]
[1748852995821,0.20599548,105960.0,105950.0,1.1418231]
[1748852996019,0.20391942,105960.0,105950.0,1.1418231]
[1748852997028,0.20391942,105960.0,105950.0,1.0374931]
[1748852997330,0.20391942,105960.0,105950.0,1.1465331]
[1748852997931,0.20391942,105960.0,105950.0,0.48801]
[1748852998132,0.4599149,105960.0,105950.0,0.39204169]
[1748852998434,0.5967149,105960.0,105950.0,0.35016151]
[1748852999136,0.8797594,105960.0,105950.0,0.35016151]
[1748853000132,0.6910949,105960.0,105950.0,0.35016151]
[1748853000633,0.8797598,105960.0,105950.0,0.35016151]
[1748853000930,0.98391389,105960.0,105950.0,0.35016151]
[1748853001127,1.17257879,105960.0,105950.0,0.35016151]
[1748853002018,0.86266389,105960.0,105950.0,0.35016151]
[1748853002218,0.67399899,105960.0,105950.0,0.35016151]
[1748853002731,1.12055899,105960.0,105950.0,0.35016151]
[1748853002922,0.57961899,105960.0,105950.0,0.35016151]
[1748853003128,0.74509548,105960.0,105940.0,0.69245506]
[1748853003427,0.20599548,105950.0,105940.0,0.69245506]
[1748853003833,0.05,105950.0,105940.0,0.69245506]
[1748853004032,0.20599548,105950.0,105940.0,0.69245506]
[1748853004729,0.67733017,105950.0,105940.0,0.69245506]
[1748853004935,0.72303017,105950.0,105940.0,0.69245506]
[1748853005925,1.5527723,105950.0,105940.0,0.69245506]
[1748853006437,1.03573761,105950.0,105940.0,0.78505506]
[1748853007234,0.65279548,105950.0,105940.0,0.78505506]
[1748853008028,0.65279548,105950.0,105940.0,0.89317506]
[1748853008223,0.65279548,105950.0,105940.0,0.88210611]
[1748853008428,1.12413017,105950.0,105940.0,0.86675716]
[1748853008633,0.97189095,105950.0,105940.0,0.81958286]
[1748853008941,1.41893095,105950.0,105940.0,0.81958286]
[1748853009231,1.40556854,105950.0,105940.0,0.81958286]
[1748853009537,0.95852854,105950.0,105940.0,0.81958286]
[1748853009729,1.40580854,105950.0,105940.0,0.81958286]
[1748853009923,0.95852854,105950.0,105940.0,0.81958286]
[1748853010138,0.29456078,105950.0,105940.0,0.96221593]
[1748853010334,0.43719385,105950.0,105940.0,0.81958286]
[1748853010739,0.14263307,105950.0,105940.0,0.81958286]
[1748853010942,0.14283307,105950.0,105940.0,0.81958286]
[1748853011144,0.14283307,105950.0,105940.0,0.80408806]
[1748853012737,0.5257431,105950.0,105940.0,0.80408806]
[1748853013135,0.82029026,105950.0,105940.0,0.80408806]
[1748853013642,0.67765719,105950.0,105940.0,0.80408806]
[1748853013945,0.29474716,105950.0,105940.0,0.94672113]
[1748853014138,0.29454716,105950.0,105940.0,0.94672113]
[1748853014332,0.0002,105950.0,105940.0,0.94672113]
[1748853014537,0.29654716,105960.0,105950.0,0.188681]
[1748853014740,0.29654716,105960.0,105950.0,0.78361407]
[1748853015138,0.29654716,105960.0,105950.0,2.28361407]
[1748853015339,0.29654716,105960.0,105950.0,2.140981]
[1748853016144,0.43918023,105960.0,105950.0,2.140981]
[1748853018248,0.48918023,105960.0,105950.0,2.140981]
[1748853018452,0.48918023,105960.0,105950.0,2.12991425]
[1748853018761,0.19463307,105960.0,105950.0,2.12991425]
[1748853019856,0.19463307,105960.0,105950.0,2.22268762]
[1748853020051,0.052,105960.0,105950.0,2.22268762]
[1748853020252,0.19463307,105960.0,105950.0,2.22268762]
[1748853020852,0.48918023,105960.0,105950.0,2.22268762]
[1748853021057,0.48918023,105960.0,105950.0,2.20719344]
[1748853023558,0.19463307,105960.0,105950.0,2.20719344]
[1748853025857,0.19463307,105960.0,105950.0,2.09907344]
[1748853026058,0.19463307,105960.0,105950.0,2.20719344]
[1748853027452,0.24333307,105960.0,105950.0,2.20719344]
[1748853028865,0.24333307,105960.0,105950.0,2.09907344]
[1748853029064,0.24333307,105960.0,105950.0,2.20719344]
[1748853029956,0.24333307,105960.0,105950.0,2.19184682]
[1748853033060,0.1007,105960.0,105950.0,2.19184682]
[1748853033264,0.24333307,105960.0,105950.0,2.19184682]
[1748853034568,0.1007,105960.0,105950.0,2.19184682]
[1748853034866,0.0507,105960.0,105950.0,2.19184682]
[1748853035061,0.0002001,105960.0,105950.0,2.33447989]
[1748853035256,0.14283317,105960.0,105950.0,2.08372682]
[1748853035458,0.14283317,105960.0,105950.0,2.19120682]
[1748853035762,0.18753317,105960.0,105950.0,2.19120682]
[1748853037265,0.23143317,105960.0,105950.0,2.19120682]
[1748853037766,0.23143317,105960.0,105950.0,2.08372682]
[1748853037957,0.23143317,105960.0,105950.0,2.19120682]
[1748853038366,0.37406624,105960.0,105950.0,0.55978]
[1748853038564,0.46916624,105960.0,105950.0,0.46828]
[1748853038763,0.46916624,105960.0,105950.0,0.45278458]
[1748853038962,0.95207627,105960.0,105950.0,0.43129722]
[1748853039765,0.85207627,105960.0,105950.0,0.32381722]
[1748853039966,0.46916624,105960.0,105950.0,0.49715049]
[1748853040460,0.46916624,105960.0,105950.0,0.30846899]
[1748853040665,0.46916624,105960.0,105950.0,0.49715039]
[1748853040859,0.46916624,105960.0,105950.0,0.30846899]
[1748853041967,0.85990087,105960.0,105950.0,0.30846899]
[1748853043068,0.47664624,105960.0,105950.0,0.30846899]
[1748853043466,0.94798093,105960.0,105950.0,0.30846899]
[1748853043670,0.94798093,105960.0,105930.0,0.36094161]
[1748853043671,0.15,105940.0,105930.0,0.36094161]
[1748853043859,0.63767307,105940.0,105930.0,0.36094161]
[1748853044060,0.33363307,105940.0,105930.0,0.54965861]
[1748853044268,0.77871307,105940.0,105930.0,0.63935861]
[1748853045273,1.25004776,105940.0,105930.0,0.45064161]
[1748853045972,1.25004776,105940.0,105930.0,0.63935751]
[1748853046663,1.25004776,105940.0,105930.0,0.62385947]
[1748853047063,1.25004776,105940.0,105930.0,0.43514357]
[1748853047773,1.35004776,105940.0,105930.0,0.43514357]
[1748853047966,1.72855613,105940.0,105920.0,0.59817551]
[1748853048173,1.72855613,105940.0,105920.0,0.64527551]
[1748853048174,0.67987307,105930.0,105920.0,0.64527551]
[1748853048375,0.0962,105930.0,105920.0,1.00607551]
[1748853048674,0.0502,105930.0,105920.0,1.14870858]
[1748853048872,0.0002,105930.0,105920.0,1.14870858]
[1748853049071,0.38274433,105940.0,105930.0,0.1887164]
[1748853049270,0.38274433,105940.0,105930.0,0.84676947]
[1748853049574,0.38274433,105940.0,105930.0,2.34676947]
[1748853049959,0.67702559,105940.0,105930.0,2.33142128]
[1748853050171,0.29428126,105940.0,105930.0,2.33142128]
[1748853050566,0.38288594,105950.0,105940.0,0.1886984]
[1748853050773,0.38288594,105950.0,105940.0,0.6396984]
[1748853050970,0.52551901,105950.0,105940.0,0.6396984]
[1748853051274,1.16027961,105950.0,105940.0,0.451]
[1748853051573,1.35437961,105950.0,105940.0,0.6396984]
[1748853052275,1.26593237,105950.0,105940.0,0.6396984]
[1748853052476,1.07725177,105950.0,105940.0,0.6396984]
[1748853053165,1.26593227,105950.0,105940.0,0.6396984]
[1748853053365,1.07725177,105950.0,105940.0,0.6396984]
[1748853053973,1.26593227,105950.0,105940.0,0.451]
[1748853055968,1.07725177,105950.0,105940.0,0.451]
[1748853057979,1.26593237,105950.0,105940.0,0.451]
[1748853058373,0.81985237,105950.0,105940.0,0.451]
[1748853058568,1.26485237,105950.0,105940.0,0.451]
[1748853059075,0.4885387,105950.0,105940.0,0.451]
[1748853059275,0.7392787,105950.0,105940.0,0.78233107]
[1748853059477,0.7398387,105950.0,105940.0,0.78233107]
[1748853059767,0.44574161,105950.0,105940.0,0.78233107]
[1748853059970,0.44574161,105950.0,105940.0,2.28233107]
[1748853060172,0.44574161,105950.0,105940.0,2.139698]
[1748853060380,0.00034161,105950.0,105940.0,2.139698]
[1748853060569,0.14297468,105950.0,105940.0,2.139698]
[1748853061177,0.33165498,105950.0,105940.0,1.951]
[1748853061374,0.14297468,105950.0,105940.0,2.1396981]
[1748853061682,0.14297468,105950.0,105940.0,0.6396981]
[1748853062070,0.14263307,105950.0,105940.0,0.6396981]
[1748853062274,0.14263307,105950.0,105940.0,0.734046]
[1748853063481,0.2944387,105960.0,105950.0,0.17333218]
[1748853063482,0.93223177,105960.0,105950.0,0.17333218]
[1748853063673,1.12089247,105960.0,105950.0,0.58153218]
[1748853063869,0.82659538,105960.0,105950.0,0.58153218]
[1748853064478,0.82663538,105960.0,105950.0,0.8591449]
[1748853064675,0.38143538,105960.0,105950.0,0.8591449]
[1748853064882,1.20933971,105960.0,105950.0,0.8591449]
[1748853066589,1.20933971,105960.0,105950.0,0.7073]
[1748853066889,1.20933971,105960.0,105950.0,0.8959804]
[1748853067188,1.02067901,105960.0,105950.0,0.8959804]
[1748853067580,1.20934161,105960.0,105950.0,0.8959804]
[1748853067887,1.20934161,105960.0,105950.0,0.7073]
[1748853068095,1.20934161,105960.0,105950.0,0.8959804]
[1748853068286,1.20934161,105960.0,105950.0,0.9404804]
[1748853069684,1.20934161,105960.0,105950.0,0.7518]
[1748853069882,1.35197468,105960.0,105950.0,0.7518]
[1748853070076,1.30194161,105960.0,105950.0,0.7518]
[1748853070688,1.44457468,105960.0,105950.0,0.7518]
[1748853071486,1.54457468,105960.0,105950.0,0.6599]
[1748853071695,1.54457468,105960.0,105950.0,0.7611]
[1748853072391,1.16183035,105960.0,105950.0,0.7611]
[1748853072594,1.16183035,105960.0,105950.0,0.73961218]
[1748853073397,1.16183035,105960.0,105950.0,0.72426373]
[1748853073691,1.16183035,105960.0,105950.0,0.462]
[1748853075082,1.16183035,105960.0,105940.0,0.40711826]
[1748853075083,0.1839704,105950.0,105940.0,0.40711826]
[1748853075391,1.02593993,105950.0,105940.0,0.51981826]
[1748853075585,0.39752953,105950.0,105940.0,0.51981826]
[1748853075791,0.97818993,105950.0,105940.0,0.70851646]
[1748853075990,0.34482953,105950.0,105940.0,0.70851646]
[1748853076202,0.29462953,105950.0,105940.0,0.70851646]